Workbook

Sheet Instructions
A1: How to use this tool
A3: Introduction: This tool is intended to be used in order to compare the costs of buying, running and servicing a water scheme with a diesel generator vs an equivalent stand alone solar pumping solution.
A4: Costs are estimated for a period of 25 years (lifespan of solar panels, the longest of all components).
A5: Costs that are common for both systems (e.g. salary of a guard for the water scheme) have been taken out, since they would have no impact in the cost comparision analysis.
A6: Costs are calculated including pumping equipemnt (pump, genertor, solar panels, invertor and accessories). By adding additional columns, other costs could be included in the analysis if necessary.
A7: Before proceeding to use the tool, read the Word document 'Technical Briefing - Ecoonomic Assessment', where principles of Net Present Value analysis are explained.
A10: Tab 1: 'Reference Costs for Generators'
A11: Costs of Generators for Juba (South Sudan) are given on table on the left. Get prices of generators for your particular country/ location
A13: Cost of Generator servicing is given on table on the right. Different servicing costs are given depending on the working hours of the generator and the quality of brand (high or low).
A14: Thee prices are used in the cost calculation under tab 'Generator System'. Use these prices as a reference, unless you have a more accurate information on the costs for mainting a generator in your location.
A17: Tab 2: 'Generator Fuel Consumption'
A18: This table is a refernce for fuel consumption. Iedally your generator should be sized to work at 75% of its load and so you should use fuel consumption data from the 75% column.
A19: If this is not the case or you have real data from the field, feel free to use the consumption you believe is closer to reality. This data will be used in tab 'Generator System'.
A22: Tab 3: 'Generator System'
A23: In this tab total costs for buying, operating, maintaing and replacing the generator will be estimated for a period of 25 years.
A24: Fill only the cells in yellow.
A25: Get discount factor for your country at http://data.worldbank.org/indicator/FR.INR.RINR?year_high_desc=false or in the Annex a of the Word document 'Technical Briefing - Economic Assessment'.
A26: The cost of 1L of fuel should compromise costs to buy, store and transport fuel to the water scheme site.
A29: Tab 4: 'Solar System'
A30: In this tab total costs for buying, operating, maintaing and replacing the solar pumping system will be estimated for a period of 25 years.
A31: Fill only the cells in yellow.
A32: Cost of Solar Pumpin gsolution should include all costs involved to buy and install the solar system (including invertor).
A33: Preventive and minor service (like cleaning and 1 or 2 visits of contractor technician to the field for preventive maintenance) is estimated at a flat rate of 1,500USD. Feel free to change I ncase rea ldata are avaible.
A36: Tab 5: 'Graph'
A37: A comparative graph is automatically generated. Get the Return on Investment (point were both lines cross) and the costs saving (difference between the 2 lines after 25 years) as main information.

Sheet 1 Reference Cost for Generators
A1: Diesel Genset (good quality brand) | C1: Prices in Juba (USD) | E1: General Reference for Maintenance of Gensets
A2: 12.5 | B2: kVA | C2: 4500
A3: 15 | B3: kVA | C3: 6000 | E3: Genset Maintenance | F3: Good Quality Engine | H3: Low Quality Engine
A4: 20 | B4: kVA | C4: 12000 | E4: Maintenance and Replacement | F4: Frequency of change (h) | G4: Price (USD) | H4: Frequency (hours) | I4: Price (USD)
A5: 30 | B5: kVA | C5: 18500 | E5: Minor Service | F5: 250 | G5: 20 | H5: 250 | I5: 20
A6: 45 | B6: kVA | C6: 22500 | E6: Major Service | F6: 1000 | G6: 180 | H6: 1000 | I6: 125
A7: 60 | B7: kVA | C7: 30000 | E7: Overhaul | F7: 10000 | G7: 30% of new | H7: 5000 | I7: 60% of new
A8: 80 | B8: kVA | C8: 34000 | E8: Replacement | F8: 35000 | G8: See 'Cost of New Gensets' | H8: 10000 | I8: See 'Cost of New Gensets'
A9: 100 | B9: kVA | C9: 40000

Sheet 2 Generator Fuel Consumption
A1: Genset Fuel Consumption chart
A2: Generator | C2: Liter/hour
A3: kVA | B3: kW | C3: Load 25% | D3: Load 50% | E3: Load 75% | F3: Load 100%
A4: 25 | B4: =A4*0.8 -> 20 | C4: 2.3 | D4: 3.4 | E4: 4.9 | F4: 6
A5: 38 | B5: 30.4 | C5: 4.2 | D5: 6.8 | E5: 9.1 | F5: 11
A6: 50 | B6: 40 | C6: 6 | D6: 8.7 | E6: 12.1 | F6: 15.1
A7: 75 | B7: 60 | C7: 6.8 | D7: 11 | E7: 14.4 | F7: 18.1
A8: 94 | B8: 75.2 | C8: 9.1 | D8: 12.9 | E8: 17.4 | F8: 23.1
A9: 125 | B9: 100 | C9: 9.8 | D9: 15.5 | E9: 21.9 | F9: 28
A10: 156 | B10: 124.8 | C10: 11.7 | D10: 18.9 | E10: 26.8 | F10: 34.4
A11: 169 | B11: 135.2 | C11: 12.5 | D11: 20.4 | E11: 28.7 | F11: 37
A12: 188 | B12: 150.4 | C12: 13.6 | D12: 22.3 | E12: 31.8 | F12: 41.2
A13: 219 | B13: 175.2 | C13: 15.5 | D13: 25.7 | E13: 36.7 | F13: 48
A14: 250 | B14: 200 | C14: 17.1 | D14: 29.1 | E14: 41.6 | F14: 54.4
A15: 288 | B15: 230.4 | C15: 20 | D15: 33.3 | E15: 47.3 | F15: 62.7
A16: 313 | B16: 250.4 | C16: 21.6 | D16: 35.9 | E16: 51.4 | F16: 68
A17: 375 | B17: 300 | C17: 25.7 | D17: 42.7 | E17: 60.9 | F17: 81.3
A18: 438 | B18: 350.4 | C18: 29.9 | D18: 49.5 | E18: 70.7 | F18: 94.9
A19: 500 | B19: 400 | C19: 33.6 | D19: 56.3 | E19: 80.5 | F19: 108.1
A20: 625 | B20: 500 | C20: 41.6 | D20: 69.9 | E20: 99.8 | F20: 134.9
A21: 750 | B21: 600 | C21: 49.9 | D21: 83.2 | E21: 119.1 | F21: 161.8
A22: 938 | B22: 750.4 | C22: 61.6 | D22: 103.6 | E22: 148.6 | F22: 201.9
A23: 1250 | B23: 1000 | C23: 81.6 | D23: 137.6 | E23: 196.9 | F23: 268.8
A24: 1563 | B24: 1250.4 | C24: 101.7 | D24: 171.2 | E24: 245.7 | F24: 335.7
A25: 1875 | B25: 1500 | C25: 121.7 | D25: 205.3 | E25: 294.1 | F25: 402.6
A26: 2188 | B26: 1750.4 | C26: 141.8 | D26: 238.9 | E26: 342.8 | F26: 469.5
A27: 2500 | B27: 2000 | C27: 161.8 | D27: 272.9 | E27: 391.5 | F27: 536.4
A28: 2813 | B28: 2250.4 | C28: 181.8 | D28: 306.6 | E28: 440 | F28: 603.3

Sheet 3 Generator System
A1: discount factor (d) | B1: 0.09 | F1: h
A2: Capital cost of generator (USD) | B2: 12000
A3: Cost of 1 L of fuel (USD) | B3: 1.1
A4: Year | B4: Cost of new generator | C4: Generator Working time (hours/year) | D4: Cumulative hours for overhaul | E4: Cumulative hours for replacement | F4: Minor Service | G4: Major Service | H4: Fuel Consumption (l/h) | I4: Cost of fuel | J4: Overhaul | K4: Replacement | L4: Discount Factor (d) | M4: Total Costs in Present Worth (USD)
B5: (= capital cost OR 0$ in case there is already a generator in place) | F5: 20 USD every 250h | G5: 180 USD every 1000h | J5: 30% genset cost every 10,000h | K5: New genset every 35,000h
A6: 0 | B6: =B2 -> 12000 | C6: =6*365 -> 2190 | D6: =C6 -> 2190 | E6: =C6 -> 2190 | F6: =(C6/250)*20 -> 175.2 | G6: =(C6/1000)*180 -> 394.2 | H6: 8.5 | I6: =C6*H6*B3 -> 20476.5 | L6: =1/(1+$B$1)^A6 -> 1 | M6: =L6*(B6+F6+G6+I6+J6+K6) -> 33045.9
A7: 1 | C7: =C6 -> 2190 | D7: =IF(K7=0,IF(D6+C7>10000,D6+C7-10000,D6+C7),E7) -> 4380 | E7: =IF(E6+C7>35000,E6+C7-35000,E6+C7) -> 4380 | F7: 175.2 | G7: 394.2 | I7: =I6 -> 20476.5 | J7: =IF($D6+$C7>10000,$B$2*0.3,0) -> 0 | K7: =IF($E6+$C7>35000,$B$2,0) -> 0 | L7: 0.9174311927 | M7: =L7*(F7+G7+I7+J7+K7) -> 19308.16514
A8: 2 | C8: =C7 -> 2190 | D8: 6570 | E8: 6570 | F8: 175.2 | G8: 394.2 | I8: =I7 -> 20476.5 | J8: =IF($D7+$C8>10000,$B$2*0.3,0) -> 0 | K8: =IF($E7+$C8>35000,$B$2,0) -> 0 | L8: 0.8416799933 | M8: 17713.91297
A9: 3 | C9: 2190 | D9: 8760 | E9: 8760 | F9: 175.2 | G9: 394.2 | I9: 20476.5 | J9: 0 | K9: 0 | L9: 0.7721834801 | M9: 16251.2963
A10: 4 | C10: 2190 | D10: 950 | E10: 10950 | F10: 175.2 | G10: 394.2 | I10: 20476.5 | J10: 3600 | K10: 0 | L10: 0.7084252111 | M10: 17459.77691
A11: 5 | C11: 2190 | D11: 3140 | E11: 13140 | F11: 175.2 | G11: 394.2 | I11: 20476.5 | J11: 0 | K11: 0 | L11: 0.6499313863 | M11: 13678.39096
A12: 6 | C12: 2190 | D12: 5330 | E12: 15330 | F12: 175.2 | G12: 394.2 | I12: 20476.5 | J12: 0 | K12: 0 | L12: 0.5962673269 | M12: 12548.98253
A13: 7 | C13: 2190 | D13: 7520 | E13: 17520 | F13: 175.2 | G13: 394.2 | I13: 20476.5 | J13: 0 | K13: 0 | L13: 0.5470342448 | M13: 11512.82801
A14: 8 | C14: 2190 | D14: 9710 | E14: 19710 | F14: 175.2 | G14: 394.2 | I14: 20476.5 | J14: 0 | K14: 0 | L14: 0.5018662797 | M14: 10562.22754
A15: 9 | C15: 2190 | D15: 1900 | E15: 21900 | F15: 175.2 | G15: 394.2 | I15: 20476.5 | J15: 3600 | K15: 0 | L15: 0.4604277795 | M15: 11347.65701
A16: 10 | C16: 2190 | D16: =IF(K16=0,IF(D15+C16>10000,D15+C16-10000,D15+C16),E16) -> 4090 | E16: 24090 | F16: 175.2 | G16: 394.2 | I16: 20476.5 | J16: 0 | K16: 0 | L16: 0.4224108069 | M16: 8890.015601
A17: 11 | C17: 2190 | D17: 6280 | E17: 26280 | F17: 175.2 | G17: 394.2 | I17: 20476.5 | J17: 0 | K17: 0 | L17: 0.3875328504 | M17: 8155.977615
A18: 12 | C18: 2190 | D18: 8470 | E18: 28470 | F18: 175.2 | G18: 394.2 | I18: 20476.5 | J18: 0 | K18: 0 | L18: 0.3555347251 | M18: 7482.548271
A19: 13 | C19: 2190 | D19: 660 | E19: 30660 | F19: 175.2 | G19: 394.2 | I19: 20476.5 | J19: 3600 | K19: 0 | L19: 0.3261786469 | M19: 8038.966313
A20: 14 | C20: 2190 | D20: 2850 | E20: 32850 | F20: 175.2 | G20: 394.2 | I20: 20476.5 | J20: 0 | K20: 0 | L20: 0.299246465 | M20: 6297.911178
A21: 15 | C21: 2190 | D21: 40 | E21: 40 | F21: 175.2 | G21: 394.2 | I21: 20476.5 | J21: 0 | K21: 12000 | L21: 0.2745380413 | M21: 9072.356659
A22: 16 | C22: 2190 | D22: 2230 | E22: 2230 | F22: 175.2 | G22: 394.2 | I22: 20476.5 | J22: 0 | K22: 0 | L22: 0.2518697627 | M22: 5300.825838
A23: 17 | C23: 2190 | D23: 4420 | E23: 4420 | F23: 175.2 | G23: 394.2 | I23: 20476.5 | J23: 0 | K23: 0 | L23: 0.2310731768 | M23: 4863.142971
A24: 18 | C24: 2190 | D24: 6610 | E24: 6610 | F24: 175.2 | G24: 394.2 | I24: 20476.5 | J24: 0 | K24: 0 | L24: 0.2119937402 | M24: 4461.599056
A25: 19 | C25: 2190 | D25: 8800 | E25: 8800 | F25: 175.2 | G25: 394.2 | I25: 20476.5 | J25: 0 | K25: 0 | L25: 0.1944896699 | M25: 4093.210143
A26: 20 | C26: 2190 | D26: 990 | E26: 10990 | F26: 175.2 | G26: 394.2 | I26: 20476.5 | J26: 3600 | K26: 0 | L26: 0.1784308898 | M26: 4397.589866
A27: 21 | C27: 2190 | D27: 3180 | E27: 13180 | F27: 175.2 | G27: 394.2 | I27: 20476.5 | J27: 0 | K27: 0 | L27: 0.163698064 | M27: 3445.173086
A28: 22 | C28: 2190 | D28: 5370 | E28: 15370 | F28: 175.2 | G28: 394.2 | I28: 20476.5 | J28: 0 | K28: 0 | L28: 0.1501817101 | M28: 3160.709253
A29: 23 | C29: 2190 | D29: 7560 | E29: 17560 | F29: 175.2 | G29: 394.2 | I29: 20476.5 | J29: 0 | K29: 0 | L29: 0.1377813854 | M29: 2899.733259
A30: 24 | C30: 2190 | D30: 9750 | E30: 19750 | F30: 175.2 | G30: 394.2 | I30: 20476.5 | J30: 0 | K30: 0 | L30: 0.1264049408 | M30: 2660.305743
L32: TOTAL COST | M32: =SUM(M6:M31) -> 246649.2022

Sheet 4 Solar System
A1: discount factor (d) | B1: ='3 Generator System'!B1 -> 0.09
A2: Cost of solar pumping solution (USD) | B2: 27000
A3: Cost of Invertor (USD) | B3: 2800
A4: Year | B4: Capital Cost | C4: Preventive and Minor Service and | D4: Major Service | E4: Fuel Consumption (l/h) | F4: Cost of fuel | G4: Overhaul | H4: Replacement | I4: Discount Factor (d) | J4: Total Costs in Present Worth (USD)
C5: Cleaning | D5: _ | G5: _ | H5: Change invertor every 7 yrs
A6: 0 | B6: =B2 -> 27000 | C6: 1500 | D6: 0 | E6: 0 | F6: 0 | I6: =1/(1+$B$1)^A6 -> 1 | J6: =I6*(B6+C6+D6+F6+G6+H6) -> 28500
A7: 1 | C7: =C6 -> 1500 | D7: =D6 -> 0 | F7: =F6 -> 0 | I7: =1/(1+$B$1)^A7 -> 0.9174311927 | J7: =I7*(C7+D7+F7+G7+H7) -> 1376.146789
A8: 2 | C8: =C7 -> 1500 | D8: =D7 -> 0 | F8: =F7 -> 0 | I8: 0.8416799933 | J8: 1262.51999
A9: 3 | C9: 1500 | D9: 0 | F9: 0 | I9: 0.7721834801 | J9: 1158.27522
A10: 4 | C10: 1500 | D10: 0 | F10: 0 | I10: 0.7084252111 | J10: 1062.637817
A11: 5 | C11: 1500 | D11: 0 | F11: 0 | I11: 0.6499313863 | J11: 974.8970794
A12: 6 | C12: 1500 | D12: 0 | F12: 0 | H12: =B3 -> 2800 | I12: 0.5962673269 | J12: 2563.949506
A13: 7 | C13: 1500 | D13: 0 | F13: 0 | I13: 0.5470342448 | J13: 820.5513673
A14: 8 | C14: 1500 | D14: 0 | F14: 0 | I14: 0.5018662797 | J14: 752.7994195
A15: 9 | C15: 1500 | D15: 0 | F15: 0 | I15: 0.4604277795 | J15: 690.6416693
A16: 10 | C16: 1500 | D16: 0 | F16: 0 | I16: 0.4224108069 | J16: 633.6162103
A17: 11 | C17: 1500 | D17: 0 | F17: 0 | I17: 0.3875328504 | J17: 581.2992755
A18: 12 | C18: 1500 | D18: 0 | F18: 0 | I18: 0.3555347251 | J18: 533.3020877
A19: 13 | C19: 1500 | D19: 0 | F19: 0 | H19: =B3 -> 2800 | I19: 0.3261786469 | J19: 1402.568182
A20: 14 | C20: 1500 | D20: 0 | F20: 0 | I20: 0.299246465 | J20: 448.8696975
A21: 15 | C21: 1500 | D21: 0 | F21: 0 | I21: 0.2745380413 | J21: 411.807062
A22: 16 | C22: 1500 | D22: 0 | F22: 0 | I22: 0.2518697627 | J22: 377.804644
A23: 17 | C23: 1500 | D23: 0 | F23: 0 | I23: 0.2310731768 | J23: 346.6097651
A24: 18 | C24: 1500 | D24: 0 | F24: 0 | I24: 0.2119937402 | J24: 317.9906102
A25: 19 | C25: 1500 | D25: 0 | F25: 0 | I25: 0.1944896699 | J25: 291.7345048
A26: 20 | C26: 1500 | D26: 0 | F26: 0 | I26: 0.1784308898 | J26: 267.6463347
A27: 21 | C27: 1500 | D27: 0 | F27: 0 | H27: =B3 -> 2800 | I27: 0.163698064 | J27: 703.9016753
A28: 22 | C28: 1500 | D28: 0 | F28: 0 | I28: 0.1501817101 | J28: 225.2725652
A29: 23 | C29: 1500 | D29: 0 | F29: 0 | I29: 0.1377813854 | J29: 206.6720781
A30: 24 | C30: 1500 | D30: 0 | F30: 0 | I30: 0.1264049408 | J30: 189.6074111
I32: TOTAL COST | J32: =SUM(J6:J31) -> 46101.12096

Sheet 5 Graph
A1: Cumulative Cost
A3: Year | B3: Generator | C3: Solar
A4: 0 | B4: ='3 Generator System'!B6 -> 12000 | C4: ='4 Solar System'!B6 -> 27000
A5: 1 | B5: ='3 Generator System'!M6 -> 33045.9 | C5: ='4 Solar System'!J6 -> 28500
A6: 2 | B6: =B5+'3 Generator System'!M7 -> 52354.06514 | C6: =C5+'4 Solar System'!J7 -> 29876.14679
A7: 3 | B7: =B6+'3 Generator System'!M8 -> 70067.97811 | C7: =C6+'4 Solar System'!J8 -> 31138.66678
A8: 4 | B8: =B7+'3 Generator System'!M9 -> 86319.27441 | C8: =C7+'4 Solar System'!J9 -> 32296.942
A9: 5 | B9: =B8+'3 Generator System'!M10 -> 103779.0513 | C9: =C8+'4 Solar System'!J10 -> 33359.57982
A10: 6 | B10: =B9+'3 Generator System'!M11 -> 117457.4423 | C10: =C9+'4 Solar System'!J11 -> 34334.4769
A11: 7 | B11: =B10+'3 Generator System'!M12 -> 130006.4248 | C11: =C10+'4 Solar System'!J12 -> 36898.4264
A12: 8 | B12: =B11+'3 Generator System'!M13 -> 141519.2528 | C12: =C11+'4 Solar System'!J13 -> 37718.97777
A13: 9 | B13: =B12+'3 Generator System'!M14 -> 152081.4804 | C13: =C12+'4 Solar System'!J14 -> 38471.77719
A14: 10 | B14: =B13+'3 Generator System'!M15 -> 163429.1374 | C14: =C13+'4 Solar System'!J15 -> 39162.41886
A15: 11 | B15: =B14+'3 Generator System'!M16 -> 172319.153 | C15: =C14+'4 Solar System'!J16 -> 39796.03507
A16: 12 | B16: =B15+'3 Generator System'!M17 -> 180475.1306 | C16: =C15+'4 Solar System'!J17 -> 40377.33434
A17: 13 | B17: =B16+'3 Generator System'!M18 -> 187957.6789 | C17: =C16+'4 Solar System'!J18 -> 40910.63643
A18: 14 | B18: =B17+'3 Generator System'!M19 -> 195996.6452 | C18: =C17+'4 Solar System'!J19 -> 42313.20461
A19: 15 | B19: =B18+'3 Generator System'!M20 -> 202294.5564 | C19: =C18+'4 Solar System'!J20 -> 42762.07431
A20: 16 | B20: =B19+'3 Generator System'!M21 -> 211366.913 | C20: =C19+'4 Solar System'!J21 -> 43173.88137
A21: 17 | B21: =B20+'3 Generator System'!M22 -> 216667.7389 | C21: =C20+'4 Solar System'!J22 -> 43551.68602
A22: 18 | B22: =B21+'3 Generator System'!M23 -> 221530.8818 | C22: =C21+'4 Solar System'!J23 -> 43898.29578
A23: 19 | B23: =B22+'3 Generator System'!M24 -> 225992.4809 | C23: =C22+'4 Solar System'!J24 -> 44216.28639
A24: 20 | B24: =B23+'3 Generator System'!M25 -> 230085.691 | C24: =C23+'4 Solar System'!J25 -> 44508.0209
A25: 21 | B25: =B24+'3 Generator System'!M26 -> 234483.2809 | C25: =C24+'4 Solar System'!J26 -> 44775.66723
A26: 22 | B26: =B25+'3 Generator System'!M27 -> 237928.454 | C26: =C25+'4 Solar System'!J27 -> 45479.56891
A27: 23 | B27: =B26+'3 Generator System'!M28 -> 241089.1632 | C27: =C26+'4 Solar System'!J28 -> 45704.84147
A28: 24 | B28: =B27+'3 Generator System'!M29 -> 243988.8965 | C28: =C27+'4 Solar System'!J29 -> 45911.51355
A29: 25 | B29: =B28+'3 Generator System'!M30 -> 246649.2022 | C29: =C28+'4 Solar System'!J30 -> 46101.12096
